bitfinex-derivatives/quotes_BTCF0:USTF0_20251128
["timestamp","ask_amount","ask_price","bid_price","bid_amount"]
[1764343097301,0.0108051,92549.0,92543.0,0.04538]
[1764343097505,0.071445,92549.0,92548.0,0.12341]
[1764343098008,0.010805,92549.0,92548.0,0.12341]
[1764343098209,0.071445,92549.0,92548.0,0.12341]
[1764343098605,0.133055,92549.0,92548.0,0.12341]
[1764343098904,0.00016217,92551.0,92543.0,0.16879]
[1764343098905,0.0714456,92544.0,92543.0,0.16879]
[1764343099211,0.0108056,92544.0,92543.0,0.16879]
[1764343099811,0.0108053,92547.0,92543.0,0.0616501]
[1764343100012,0.1330556,92545.0,92543.0,0.0616501]
[1764343100208,0.12225,92545.0,92544.0,0.12341]
[1764343100406,0.0108051,92549.0,92548.0,0.12341]
[1764343100707,0.12225,92545.0,92544.0,0.1342156]
[1764343101813,0.00016217,92551.0,92550.0,0.12341]
[1764343101814,0.12241217,92551.0,92550.0,0.12341]
[1764343102018,0.49241217,92551.0,92550.0,0.16216]
[1764343102310,0.37016217,92551.0,92550.0,0.16216]
[1764343102517,0.49241217,92551.0,92550.0,0.16216]
[1764343102813,0.50321697,92551.0,92550.0,0.12341]
[1764343103115,0.50321697,92551.0,92550.0,0.1352149]
[1764343103313,0.50321697,92551.0,92550.0,0.16316]
[1764343103507,0.50321697,92551.0,92550.0,0.001]
[1764343104310,0.50321697,92551.0,92550.0,0.16316]
[1764343105215,0.49241217,92551.0,92550.0,0.16316]
[1764343105818,0.00016217,92551.0,92550.0,0.16316]
[1764343106312,0.12241217,92551.0,92550.0,0.16316]
[1764343106517,0.12241217,92551.0,92550.0,0.16216]
[1764343106817,0.06080217,92551.0,92550.0,0.16316]
[1764343107007,0.00016217,92551.0,92550.0,0.16316]
[1764343111119,0.00027008,92566.0,92565.0,0.1342132]
[1764343111420,0.00027008,92566.0,92565.0,0.1729632]
[1764343112607,0.11853008,92566.0,92565.0,0.1729632]
[1764343113019,0.11853008,92566.0,92565.0,0.16216]
[1764343113222,0.11853008,92566.0,92556.0,0.37327095]
[1764343113223,0.11826,92557.0,92556.0,0.37327095]
[1764343113515,0.49826,92557.0,92556.0,0.06216207]
[1764343113713,0.49826,92557.0,92556.0,0.00016207]
[1764343114814,0.49826,92557.0,92556.0,0.06216207]
[1764343115120,0.49826,92557.0,92556.0,0.00016207]
[1764343116320,0.22826,92557.0,92556.0,0.16330207]
[1764343117024,0.11853008,92566.0,92565.0,0.12531]
[1764343117322,0.05859,92557.0,92556.0,0.17921533]
[1764343117510,0.11826,92557.0,92556.0,0.19001953]
[1764343117715,0.11853008,92566.0,92565.0,0.1361132]
[1764343118116,0.00027008,92566.0,92565.0,0.1361132]
[1764343119320,0.26943888,92610.0,92593.0,0.12531]
[1764343119321,0.11826,92594.0,92593.0,0.12531]
[1764343119624,0.11826,92591.0,92590.0,0.12531]
[1764343119825,0.50826,92591.0,92590.0,0.12531]
[1764343120323,0.50826,92591.0,92590.0,0.16314]
[1764343120522,0.11826,92590.0,92589.0,0.0108003]
[1764343120717,0.50826,92590.0,92589.0,0.0108003]
[1764343121219,0.50826,92590.0,92589.0,0.1361103]
[1764343121812,0.50826,92590.0,92589.0,0.12531]
[1764343122124,0.11826,92585.0,92584.0,0.13627307]
[1764343122527,0.11826,92595.0,92594.0,0.0107998]
[1764343122717,0.56826,92595.0,92594.0,0.1361098]
[1764343123113,0.50859,92595.0,92594.0,0.1361098]
[1764343123320,0.05859,92595.0,92594.0,0.1361098]
[1764343123522,0.11826,92595.0,92594.0,0.0107998]
[1764343124525,0.56826,92595.0,92594.0,0.0107998]
[1764343125019,0.56826,92595.0,92594.0,0.0727998]
[1764343125528,0.45,92595.0,92584.0,0.00016207]
[1764343125720,0.05859,92585.0,92584.0,0.15288342]
[1764343125920,0.05859,92585.0,92584.0,0.13627307]
[1764343126630,0.05859,92595.0,92594.0,0.1361098]
[1764343126826,0.11826,92595.0,92594.0,0.12531]
[1764343127227,0.11826,92591.0,92590.0,0.062]
[1764343127522,0.49826,92591.0,92584.0,0.08535208]
[1764343127729,0.11826,92585.0,92584.0,0.22146308]
[1764343128421,0.1290608,92585.0,92584.0,0.00016207]
[1764343128626,0.1290608,92585.0,92584.0,0.12547207]
[1764343128830,0.1290608,92585.0,92584.0,0.00016207]
[1764343129323,0.1290608,92585.0,92584.0,0.07832234]
[1764343129527,0.1290608,92585.0,92584.0,0.00016207]
[1764343129528,0.5690608,92585.0,92584.0,0.00016207]
[1764343130122,0.5690608,92585.0,92584.0,0.12547207]
[1764343130325,0.1290608,92585.0,92584.0,0.12547207]
[1764343130925,0.5190608,92585.0,92584.0,0.00016207]
[1764343132523,0.11826,92575.0,92574.0,0.136112]
[1764343132734,0.55826,92575.0,92574.0,0.14172096]
[1764343132921,0.55826,92575.0,92574.0,0.01641096]
[1764343133119,0.55826,92575.0,92567.0,0.0108029]
[1764343133120,0.11826,92568.0,92567.0,0.0108029]
[1764343133315,0.03727,92583.0,92568.0,0.062]
[1764343133518,0.1290627,92569.0,92568.0,0.12531]
[1764343133829,0.1290627,92569.0,92567.0,0.0108029]
[1764343133830,0.1290629,92567.0,92566.0,0.00016207]
[1764343134027,0.48826,92567.0,92566.0,0.00016207]
[1764343134329,0.11826,92573.0,92572.0,0.1361122]
[1764343134530,0.54826,92573.0,92572.0,0.1361122]
[1764343134722,0.11826,92573.0,92572.0,0.1361122]
[1764343134919,0.00016174,92585.0,92584.0,0.12531]
[1764343135121,0.11842174,92585.0,92584.0,0.12531]
[1764343135633,0.11826,92579.0,92578.0,0.12531]
[1764343135924,0.00016174,92585.0,92574.0,0.1739421]
[1764343135925,0.11826,92575.0,92574.0,0.1739421]
[1764343137126,0.11826,92575.0,92574.0,0.1361121]
[1764343137428,0.11826,92575.0,92574.0,0.12831]
[1764343138020,0.11826,92575.0,92574.0,0.12531]
[1764343138219,0.11826,92575.0,92574.0,0.12731]
[1764343138628,0.11826,92575.0,92574.0,0.002]
[1764343138829,0.55826,92575.0,92574.0,0.002]
[1764343139220,0.55826,92575.0,92566.0,0.01096507]
[1764343139221,0.11826,92567.0,92566.0,0.00016207]
[1764343139422,0.38,92567.0,92540.0,0.03783]
[1764343139623,0.38,92567.0,92551.0,0.0108048]
[1764343139822,0.38,92567.0,92557.0,0.12531]
[1764343140129,0.5090629,92567.0,92566.0,0.12531]
[1764343140330,0.1290629,92567.0,92566.0,0.12531]
[1764343140631,0.1696,92572.0,92560.0,0.16314]
[1764343140632,0.11826,92561.0,92560.0,0.16314]
[1764343141130,0.0108036,92562.0,92561.0,0.12531]
[1764343141321,0.1290636,92562.0,92561.0,0.12531]
[1764343141927,0.0108025,92571.0,92561.0,0.12531]
[1764343142125,0.00016207,92576.0,92575.0,0.11581]
[1764343143833,0.05563207,92576.0,92575.0,0.11581]
[1764343144026,0.11733207,92576.0,92575.0,0.11581]
[1764343144428,0.05563207,92576.0,92575.0,0.11581]
[1764343145025,0.00016207,92576.0,92575.0,0.11581]
[1764343145624,0.11188,92596.0,92575.0,0.11581]
[1764343145831,0.08547,92596.0,92595.0,0.1266097]
[1764343146223,0.14717,92596.0,92595.0,0.1266097]
[1764343146830,0.0107997,92595.0,92594.0,0.11581]
[1764343147034,0.00016174,92605.0,92597.0,0.11581]
[1764343147035,0.1279693,92598.0,92597.0,0.11581]
[1764343147236,0.3479693,92598.0,92597.0,0.11581]
[1764343147434,0.1279693,92598.0,92597.0,0.11581]
[1764343150044,0.11717,92598.0,92597.0,0.1266094]
[1764343150250,0.11717,92598.0,92597.0,0.11581]
[1764343151741,0.05547,92598.0,92597.0,0.11581]
[1764343152242,0.0662687,92604.0,92603.0,0.11581]
[1764343152545,0.39,92604.0,92603.0,0.11581]
[1764343152738,0.44547,92604.0,92603.0,0.11581]
[1764343152949,0.50717,92604.0,92603.0,0.11581]
[1764343153548,0.39,92604.0,92603.0,0.11581]
[1764343154251,0.50717,92604.0,92603.0,0.11581]
[1764343154650,0.01096034,92605.0,92603.0,0.11581]
[1764343154651,0.00016174,92605.0,92603.0,0.11581]
[1764343154859,0.00016174,92605.0,92604.0,0.1266086]
[1764343155553,0.05563174,92605.0,92604.0,0.1266086]
[1764343155850,0.0121,92630.0,92604.0,0.1266086]
[1764343155851,0.0107941,92644.0,92624.0,0.11581]
[1764343156047,0.0107952,92634.0,92624.0,0.11581]
[1764343156851,0.0107957,92629.0,92624.0,0.11581]
[1764343157254,0.0107954,92632.0,92624.0,0.11581]
[1764343157852,0.0107957,92630.0,92624.0,0.11581]
[1764343158042,0.0107935,92648.0,92624.0,0.11581]
[1764343158248,0.0107953,92633.0,92624.0,0.11581]
[1764343159361,0.0107935,92648.0,92624.0,0.11581]
[1764343159362,0.0107955,92631.0,92624.0,0.11581]
[1764343159548,0.0607962,92625.0,92624.0,0.11581]
[1764343160956,0.05,92625.0,92624.0,0.11581]
[1764343161859,0.10547,92625.0,92624.0,0.11581]
[1764343162459,0.05,92625.0,92624.0,0.11681]
[1764343163759,0.10333,92642.0,92641.0,0.0633542]
[1764343163954,0.5241244,92642.0,92641.0,0.10471]
[1764343164856,0.10333,92645.0,92644.0,0.10471]
[1764343165153,0.10333,92645.0,92642.0,0.0107942]
[1764343165154,0.00026985,92646.0,92645.0,0.1155038]
[1764343165366,0.00026985,92646.0,92645.0,0.10471]
[1764343165863,0.05306985,92646.0,92645.0,0.10471]
[1764343167761,0.01106355,92646.0,92645.0,0.10471]
[1764343168269,0.06386355,92646.0,92645.0,0.10471]
[1764343169269,0.00026985,92646.0,92645.0,0.11021]
[1764343170162,0.05306985,92646.0,92645.0,0.11021]
[1764343170365,0.00026985,92646.0,92645.0,0.11021]
[1764343170767,0.10359985,92646.0,92645.0,0.11021]
[1764343171370,0.10359985,92646.0,92645.0,0.05806]
[1764343171570,0.46359985,92646.0,92645.0,0.0055]
[1764343175874,0.1121147,92638.0,92637.0,0.0149554]
[1764343176170,0.1121152,92633.0,92632.0,0.00016199]
[1764343176372,0.4721152,92633.0,92632.0,0.00016199]
[1764343176874,0.1121171,92617.0,92616.0,0.05174]
[1764343177070,0.112119,92601.0,92600.0,0.13136]
[1764343177275,0.10132,92601.0,92600.0,0.13136]
[1764343177477,0.04982,92601.0,92600.0,0.13136]
[1764343177671,0.1121182,92609.0,92608.0,0.10228]
[1764343177878,0.5321182,92609.0,92608.0,0.10228]
[1764343178172,0.52132,92609.0,92608.0,0.10228]
[1764343178371,0.00016169,92610.0,92609.0,0.10228]
[1764343181281,0.0606168,92621.0,92620.0,0.10228]
[1764343181479,0.4221168,92621.0,92620.0,0.10228]
[1764343182180,0.2321168,92621.0,92620.0,0.10228]
[1764343182380,0.4121168,92621.0,92620.0,0.10228]
[1764343183082,0.4121168,92621.0,92620.0,0.05174]
[1764343183381,0.4121168,92621.0,92620.0,0.10228]
[1764343183570,0.1121168,92621.0,92620.0,0.10228]
[1764343184070,0.1121177,92612.0,92611.0,0.10244199]
[1764343184278,0.10132,92612.0,92611.0,0.10244199]
[1764343184473,0.0107975,92614.0,92613.0,0.10228]
[1764343184677,0.1121175,92614.0,92613.0,0.10228]
[1764343184876,0.1821175,92614.0,92613.0,0.10228]
[1764343185277,0.1121175,92614.0,92613.0,0.10228]
[1764343185477,0.10132,92614.0,92613.0,0.10228]
[1764343185875,0.1496,92629.0,92628.0,0.10228]
[1764343186079,0.1496,92629.0,92616.0,0.1421572]
[1764343186080,0.1121171,92617.0,92616.0,0.1421572]
[1764343186381,0.1121171,92617.0,92616.0,0.13136]
[1764343187576,0.1121171,92617.0,92616.0,0.10228]
[1764343187974,0.1121171,92617.0,92616.0,0.13136]
[1764343188180,0.0606171,92617.0,92616.0,0.13136]
[1764343188781,0.10132,92622.0,92621.0,0.10228]
[1764343188987,0.10132,92632.0,92624.0,0.02908]
[1764343189277,0.26724,92635.0,92634.0,0.1130751]
[1764343189582,0.62724,92635.0,92634.0,0.1130751]
[1764343190089,0.16592,92635.0,92634.0,0.1130751]
[1764343190587,0.0606149,92636.0,92635.0,0.10228]
[1764343190786,0.1806149,92636.0,92635.0,0.10228]
[1764343190985,0.00026985,92646.0,92645.0,0.10228]
[1764343194579,0.10158985,92646.0,92645.0,0.10228]
[1764343195292,0.00026985,92646.0,92645.0,0.10228]
[1764343197500,0.0107903,92676.0,92654.0,0.1130728]
[1764343197695,0.06548,92675.0,92654.0,0.1130728]
[1764343197885,0.0107922,92659.0,92654.0,0.1130728]
[1764343198085,0.06548,92675.0,92654.0,0.1130728]
[1764343198086,0.0107925,92657.0,92654.0,0.1130728]
[1764343199295,0.06548,92675.0,92654.0,0.1130728]
[1764343199495,0.0107925,92657.0,92654.0,0.1130728]
[1764343200401,0.06548,92675.0,92654.0,0.1130728]
[1764343200587,0.0107923,92659.0,92654.0,0.1130728]
[1764343200786,0.06548,92675.0,92654.0,0.1130728]
[1764343200988,0.0107909,92670.0,92654.0,0.1130728]
[1764343201295,0.0107922,92659.0,92654.0,0.1130728]
[1764343201887,0.0107926,92656.0,92654.0,0.1130728]
[1764343202393,0.1050496,92682.0,92681.0,0.09644]
[1764343202581,0.5450496,92682.0,92681.0,0.09474]
[1764343203588,0.1050506,92673.0,92672.0,0.09660189]
[1764343204199,0.0107906,92673.0,92672.0,0.09660189]
[1764343204383,0.1750506,92673.0,92672.0,0.09660189]
[1764343204587,0.5350506,92673.0,92672.0,0.09660189]
[1764343204788,0.5350506,92673.0,92672.0,0.04432189]
[1764343205288,0.5350506,92673.0,92672.0,0.09660189]
[1764343205891,0.0556788,92689.0,92688.0,0.04416]
[1764343206193,0.1050494,92683.0,92682.0,0.09644]
[1764343206389,0.5050494,92683.0,92682.0,0.09644]
[1764343207497,0.5050494,92683.0,92682.0,0.12667]
[1764343210088,0.1050505,92674.0,92673.0,0.12667]
[1764343210289,0.04489,92674.0,92673.0,0.12667]
[1764343210490,0.1050498,92680.0,92679.0,0.09644]
[1764343210697,0.15426,92680.0,92679.0,0.09644]
[1764343210997,0.06,92680.0,92679.0,0.09644]
[1764343211194,0.1708,92693.0,92673.0,0.03023]
[1764343211195,0.26506,92693.0,92692.0,0.09644]
[1764343211502,0.6758483,92693.0,92692.0,0.09644]
[1764343211687,0.04489,92682.0,92681.0,0.0107896]
[1764343211892,0.21489,92682.0,92681.0,0.1072296]
[1764343212094,0.09426,92682.0,92681.0,0.09644]
[1764343212605,0.04937,92693.0,92692.0,0.09644]
[1764343212800,0.09426,92693.0,92692.0,0.09644]
[1764343213098,0.04489,92681.0,92680.0,0.03023]
[1764343213291,0.09426,92681.0,92680.0,0.1374597]
[1764343213794,0.01418,92688.0,92673.0,0.09644]
[1764343214001,0.09426,92674.0,92673.0,0.09644]
[1764343214306,0.23426,92674.0,92673.0,0.09644]
[1764343214607,0.1050499,92679.0,92678.0,0.09644]
[1764343214792,0.1050506,92673.0,92672.0,0.14189512]
[1764343214990,0.5150506,92673.0,92672.0,0.11166512]
[1764343215489,0.5150506,92673.0,92672.0,0.01522512]
[1764343215695,0.6858506,92673.0,92672.0,0.01522512]
[1764343216293,0.1050534,92649.0,92648.0,0.09644]
[1764343216495,0.09426,92641.0,92640.0,0.1374644]
[1764343217696,0.09426,92641.0,92640.0,0.1444644]
[1764343217897,0.04489,92641.0,92640.0,0.1444644]
[1764343218204,0.09442158,92650.0,92649.0,0.1072334]
[1764343218403,0.00016158,92650.0,92649.0,0.1072334]
[1764343219504,0.00016158,92650.0,92649.0,0.1112334]
[1764343220102,0.00016158,92650.0,92649.0,0.10044]
[1764343220796,0.00016158,92650.0,92649.0,0.10864]
[1764343221213,0.00016158,92650.0,92623.0,0.23304158]
[1764343221214,0.08943,92632.0,92623.0,0.23304158]
[1764343221394,0.08943,92632.0,92631.0,0.08959189]
[1764343221395,0.4996254,92632.0,92631.0,0.08959189]
[1764343221599,0.4802254,92632.0,92631.0,0.08959189]
[1764343221993,0.1602254,92632.0,92631.0,0.08959189]
[1764343222508,0.04467158,92650.0,92649.0,0.04558]
[1764343222704,0.04467158,92650.0,92649.0,0.08943]
[1764343222901,0.00016158,92650.0,92649.0,0.08943]
[1764343225208,0.00216158,92650.0,92649.0,0.08943]
[1764343225601,0.08943,92641.0,92640.0,0.08943]
[1764343225804,0.0553043,92642.0,92641.0,0.08943]
[1764343226007,0.0107943,92642.0,92641.0,0.08943]
[1764343227305,0.0107943,92642.0,92640.0,0.02643]
[1764343227306,0.00016158,92650.0,92640.0,0.02643]
[1764343227500,0.00016158,92650.0,92649.0,0.08943]
[1764343227699,0.01095488,92650.0,92649.0,0.08943]
[1764343230013,0.01295488,92650.0,92649.0,0.08943]
[1764343232114,0.05746488,92650.0,92649.0,0.08943]
[1764343232912,0.10430488,92650.0,92649.0,0.08943]
[1764343233912,0.00216158,92650.0,92649.0,0.10539202]
[1764343234118,0.0107902,92677.0,92662.0,0.09082]
[1764343234315,0.1035817,92663.0,92662.0,0.09082]
[1764343234514,0.0107917,92663.0,92662.0,0.09082]
[1764343235614,0.0157917,92663.0,92662.0,0.09082]
[1764343236120,0.09279,92655.0,92654.0,0.1016127]
[1764343236318,0.005,92663.0,92662.0,0.09082]
[1764343237116,0.0107906,92674.0,92673.0,0.09082]
[1764343237317,0.03,92674.0,92673.0,0.09082]
[1764343237526,0.03,92674.0,92670.0,0.02725]
[1764343237527,0.0107901,92678.0,92677.0,0.0107901]
[1764343237721,0.0107901,92678.0,92677.0,0.09082]
[1764343238222,0.09279,92690.0,92689.0,0.09082]
[1764343238416,0.4935786,92690.0,92689.0,0.09082]
[1764343239123,0.04595,92681.0,92680.0,0.11807]
[1764343239325,0.1035792,92686.0,92685.0,0.09082]
[1764343240514,0.1075792,92686.0,92685.0,0.09082]
[1764343242020,0.1075792,92686.0,92685.0,0.0469]
[1764343242227,0.1035797,92681.0,92680.0,0.09082]
[1764343242425,0.0567392,92685.0,92684.0,0.09082]
[1764343242728,0.04595,92685.0,92684.0,0.09082]
[1764343243115,0.09279,92685.0,92684.0,0.09082]
[1764343243521,0.09679,92685.0,92684.0,0.09082]
[1764343243831,0.004,92685.0,92684.0,0.09082]
[1764343246025,0.1035797,92681.0,92680.0,0.01577784]
[1764343246226,0.394,92685.0,92674.0,0.1016104]
[1764343246227,0.09279,92675.0,92674.0,0.1016104]
[1764343246528,0.09679,92685.0,92684.0,0.09082]
[1764343246718,0.48679,92685.0,92684.0,0.09082]
[1764343247118,0.48279,92685.0,92684.0,0.09082]
[1764343247315,0.0387475,92700.0,92684.0,0.09082]
[1764343247316,0.0107887,92690.0,92685.0,0.0107892]
[1764343247526,0.0107887,92690.0,92689.0,0.09082]
[1764343247735,0.0567387,92690.0,92689.0,0.09082]
[1764343248028,0.1035787,92690.0,92689.0,0.09082]
[1764343248229,0.0107887,92690.0,92689.0,0.09082]
[1764343248928,0.09279,92683.0,92682.0,0.09082]
[1764343249129,0.09279,92683.0,92682.0,0.11807]
[1764343249428,0.04595,92683.0,92682.0,0.11807]
[1764343249625,0.0107893,92684.0,92683.0,0.09082]
[1764343250036,0.0107893,92684.0,92683.0,0.1016094]
[1764343250223,0.0107893,92684.0,92683.0,0.09082]
[1764343250630,0.0107887,92690.0,92689.0,0.09082]
[1764343250926,0.0107887,92690.0,92683.0,0.0107894]
[1764343250927,0.1035777,92698.0,92697.0,0.09082]
[1764343251121,0.5035777,92698.0,92697.0,0.09082]
[1764343252222,0.5035777,92698.0,92697.0,0.0469]
[1764343252422,0.2535777,92698.0,92697.0,0.09682]
[1764343253119,0.4935777,92698.0,92697.0,0.09682]
[1764343253320,0.59726097,92705.0,92704.0,0.09082]
[1764343253524,0.60804787,92705.0,92704.0,0.09082]
[1764343253730,0.60804787,92705.0,92700.0,0.02725]
[1764343253731,0.21695,92715.0,92714.0,0.0469]
[1764343253923,0.64379,92715.0,92714.0,0.0469]
[1764343254627,0.1035767,92707.0,92706.0,0.09082]
[1764343255524,0.09279,92707.0,92706.0,0.09082]
[1764343256028,0.07751117,92767.0,92749.0,0.1016017]
[1764343256234,0.04595,92764.0,92763.0,0.1016001]
[1764343256528,0.12075,92772.0,92771.0,0.0469]
[1764343256729,0.12075,92772.0,92771.0,0.09082]
[1764343257120,0.0748,92772.0,92762.0,0.00016169]
[1764343257326,0.12075,92763.0,92762.0,0.00016169]
[1764343257735,0.12075,92763.0,92762.0,0.04706169]
[1764343258127,0.12075,92763.0,92762.0,0.09098169]
[1764343258323,0.12075,92763.0,92762.0,0.04706169]
[1764343258934,0.12075,92763.0,92762.0,0.09098169]
[1764343260442,0.12075,92763.0,92762.0,0.00016169]
[1764343260630,0.02796,92741.0,92720.0,0.24717446]
[1764343260827,0.4187427,92741.0,92725.0,0.0107845]
[1764343261137,0.02796,92752.0,92740.0,0.09082]
[1764343261138,0.0107815,92751.0,92740.0,0.09082]
[1764343261337,0.0107815,92751.0,92740.0,0.1016027]
[1764343261533,0.02796,92752.0,92740.0,0.1016027]
[1764343262040,0.04595,92741.0,92740.0,0.1016027]
[1764343262236,0.02796,92752.0,92743.0,0.0107823]
[1764343262433,0.07043,92752.0,92751.0,0.09242]
[1764343262826,0.04263103,92755.0,92754.0,0.09242]
[1764343263034,0.08912103,92755.0,92754.0,0.09242]
[1764343264036,0.00016103,92755.0,92754.0,0.09242]
[1764343264236,0.11692,92772.0,92771.0,0.09242]
[1764343265045,0.11692,92772.0,92760.0,0.25795486]
[1764343265230,0.11692,92772.0,92760.0,0.24717446]
[1764343265427,0.08896,92771.0,92770.0,0.0556092]
[1764343265642,0.08896,92771.0,92770.0,0.1031992]
[1764343266238,0.08896,92771.0,92770.0,0.09242]
[1764343266636,0.08896,92765.0,92764.0,0.04483]
[1764343266941,0.08896,92765.0,92764.0,0.09242]
[1764343267137,0.08896,92758.0,92757.0,0.00016169]
[1764343267438,0.08896,92734.0,92733.0,0.0107835]
[1764343267829,0.08896,92734.0,92733.0,0.1032035]
[1764343268029,0.08896,92732.0,92731.0,0.08756471]
[1764343268232,0.08896,92732.0,92720.0,0.24717446]
[1764343268443,0.08896,92732.0,92731.0,0.09242]
[1764343268644,0.00016169,92735.0,92734.0,0.09242]
[1764343268839,0.04263169,92735.0,92734.0,0.09242]
[1764343269040,0.08896,92733.0,92724.0,0.0107845]
[1764343269243,0.04247,92722.0,92721.0,0.010785]
[1764343269440,0.04247,92722.0,92721.0,0.103205]
[1764343269744,0.08896,92722.0,92721.0,0.04483]
[1764343269946,0.08896,92721.0,92720.0,0.10336876]
[1764343270143,0.08896,92721.0,92720.0,0.001]
[1764343270549,0.02699,92729.0,92720.0,0.1042051]
[1764343270740,0.02699,92729.0,92724.0,0.0107846]
[1764343271042,0.08896,92725.0,92724.0,0.09242]
[1764343272044,0.00016169,92735.0,92734.0,0.09242]
[1764343272449,0.08912169,92735.0,92727.0,0.0107842]
[1764343272751,0.08896,92731.0,92730.0,0.1032038]
[1764343273046,0.08896,92731.0,92730.0,0.09242]
[1764343273348,0.08896,92731.0,92720.0,0.001]
[1764343273349,0.08896,92721.0,92720.0,0.001]
[1764343273540,0.08896,92718.0,92717.0,0.01637075]
[1764343274351,0.08896,92697.0,92696.0,0.00010671]
[1764343274742,0.49896,92697.0,92696.0,0.00010671]
[1764343274937,0.08896,92697.0,92696.0,0.00010671]
[1764343275547,0.48896,92697.0,92696.0,0.00010671]
[1764343276044,0.48896,92697.0,92696.0,0.0161666]
[1764343276243,0.48896,92697.0,92696.0,0.00010671]
[1764343277951,0.0894,92688.0,92687.0,0.0001618]
[1764343278354,0.1001888,92688.0,92687.0,0.0001618]
[1764343278946,0.10029551,92688.0,92687.0,0.0001618]
[1764343279652,0.10029551,92688.0,92687.0,0.0011618]
[1764343279856,0.10029551,92688.0,92687.0,0.0021618]
[1764343280153,0.10029551,92688.0,92677.0,0.08743179]
[1764343280154,0.0894,92662.0,92661.0,0.08511]
[1764343280353,0.08948307,92662.0,92661.0,0.04119]
[1764343280655,0.08948307,92662.0,92661.0,0.08423002]
[1764343280852,0.08948307,92662.0,92655.0,0.0107926]
[1764343280853,0.010792,92661.0,92655.0,0.0107926]
[1764343281157,8.307e-05,92662.0,92655.0,0.0107926]
[1764343281353,0.0894,92652.0,92651.0,0.0107931]
[1764343281758,0.0894,92652.0,92651.0,0.0519831]
[1764343282256,8.307e-05,92662.0,92658.0,0.08511]
[1764343282257,0.0107923,92659.0,92658.0,0.08511]
[1764343282450,0.0107923,92659.0,92649.0,0.00016189]
[1764343282451,0.1001923,92659.0,92649.0,0.00016189]
[1764343282963,0.1001928,92654.0,92653.0,0.0107929]
[1764343283255,0.1001928,92654.0,92649.0,0.00016189]
[1764343283256,0.0894,92650.0,92649.0,0.00016189]
[1764343283461,0.1001943,92641.0,92640.0,9.245e-05]
[1764343283660,0.08950671,92641.0,92640.0,9.245e-05]
[1764343284451,0.08950671,92641.0,92640.0,0.08520245]
[1764343284452,0.00010671,92641.0,92640.0,0.08520245]
[1764343284761,0.08950671,92641.0,92640.0,0.04128245]
[1764343284961,0.08950671,92641.0,92640.0,0.08520245]
[1764343285262,0.00010671,92641.0,92640.0,0.08520245]
[1764343285958,0.0107922,92660.0,92640.0,9.245e-05]
[1764343286263,0.0894,92654.0,92653.0,0.0107928]
[1764343286463,0.0894,92654.0,92653.0,0.0519828]
[1764343287264,0.04416,92650.0,92645.0,0.0107938]
[1764343287459,0.010793,92653.0,92648.0,0.0519835]
[1764343288382,0.04416,92645.0,92644.0,0.19649699]
[1764343288583,0.04416,92645.0,92644.0,0.23768699]
[1764343288981,0.1001938,92645.0,92644.0,0.04119]
[1764343289177,0.1001943,92641.0,92640.0,0.01627292]
[1764343289386,0.5201943,92641.0,92640.0,0.01627292]
[1764343289695,0.1001943,92641.0,92640.0,0.01627292]
[1764343289884,0.04416,92641.0,92640.0,0.11217732]
[1764343290075,0.04416,92641.0,92640.0,0.10138292]
[1764343290271,0.0894,92641.0,92640.0,0.01627292]
[1764343291083,0.0246,92651.0,92650.0,0.0107933]
[1764343291084,0.06876,92651.0,92650.0,0.0107933]
[1764343291276,0.06876,92651.0,92650.0,0.0959033]
[1764343291277,0.114,92651.0,92650.0,0.0959033]
[1764343292178,0.10966,92664.0,92663.0,0.0107917]
[1764343292482,0.08506,92655.0,92654.0,0.00016189]
[1764343292887,0.08506,92655.0,92654.0,0.08312189]
[1764343293483,0.0246,92664.0,92663.0,0.0498817]
[1764343293484,0.06596,92664.0,92663.0,0.0498817]
[1764343293691,0.00016189,92667.0,92666.0,0.0937514]
[1764343293988,0.04152189,92667.0,92666.0,0.0937514]
[1764343294189,0.08522189,92667.0,92666.0,0.0498814]
[1764343295781,0.08522189,92667.0,92666.0,0.0937514]
[1764343295988,0.00016189,92667.0,92666.0,0.0937514]
[1764343298880,0.10966,92688.0,92687.0,0.010789]
[1764343300797,0.11066,92688.0,92687.0,0.010789]
[1764343301092,0.11066,92688.0,92678.0,0.00016189]
[1764343301093,0.0958499,92679.0,92678.0,0.00016189]
[1764343301691,0.08506,92679.0,92678.0,0.00016189]
[1764343302196,0.08606,92679.0,92678.0,0.00016189]
[1764343303899,0.08606,92679.0,92678.0,0.01649685]
[1764343304098,0.08606,92679.0,92678.0,0.00016189]
[1764343308598,0.08606,92679.0,92678.0,0.0168884]
[1764343309193,0.08606,92679.0,92660.0,0.19649699]
[1764343309396,0.08606,92679.0,92647.0,0.11594726]
[1764343309397,0.0958535,92648.0,92647.0,0.11594726]
[1764343309595,0.08506,92646.0,92645.0,0.0937538]
[1764343309795,0.04136,92651.0,92650.0,0.0937533]
[1764343309999,0.08506,92651.0,92650.0,0.0937533]
[1764343310302,0.02628,92664.0,92659.0,0.0107922]
[1764343310303,0.09601409,92660.0,92659.0,0.0107922]
[1764343310503,0.0958525,92657.0,92656.0,0.0498825]
[1764343310704,0.0958525,92657.0,92656.0,0.0937525]
[1764343310902,0.0958525,92657.0,92656.0,0.0498825]
[1764343311505,0.0958525,92657.0,92656.0,0.0937525]
[1764343311699,0.08506,92657.0,92656.0,0.0937525]
[1764343313309,0.08506,92648.0,92647.0,0.0937536]
[1764343313606,0.02628,92653.0,92652.0,0.093753]
[1764343313607,0.04136,92653.0,92652.0,0.093753]
[1764343313904,0.08522189,92660.0,92659.0,0.0937522]
[1764343314492,0.00016189,92660.0,92659.0,0.0937522]
[1764343314905,0.08522189,92660.0,92659.0,0.0937522]
[1764343315506,0.00016189,92660.0,92659.0,0.0937522]
[1764343315801,0.08522189,92660.0,92659.0,0.0937522]
[1764343316007,0.08522189,92660.0,92659.0,0.0107922]
[1764343316203,0.04152189,92660.0,92659.0,0.0937522]
[1764343316408,0.00016189,92660.0,92659.0,0.0937522]
[1764343318198,0.00016189,92660.0,92659.0,0.17060946]
[1764343319003,0.00016189,92660.0,92659.0,0.0937522]
[1764343319198,0.11134,92675.0,92674.0,0.0498805]
[1764343320110,0.11134,92675.0,92674.0,0.0107905]
[1764343320301,0.11234,92675.0,92674.0,0.0107905]